bitfinex-derivatives/quotes_BTCF0:USTF0_20241128
["timestamp","ask_amount","ask_price","bid_price","bid_amount"]
[1732815652287,0.149,95012.0,95007.0,0.00108704]
[1732815652484,0.201612,95012.0,95007.0,0.00108704]
[1732815653588,0.149,95012.0,95007.0,0.00108704]
[1732815653988,0.052613,95009.0,95007.0,0.00108704]
[1732815655293,0.052613,95009.0,95007.0,8.704e-05]
[1732815655499,0.052613,95009.0,95007.0,0.00108704]
[1732815655683,0.0315,95008.0,95007.0,0.00108704]
[1732815657489,0.084113,95008.0,95007.0,0.00108704]
[1732815661903,0.052611,95013.0,95007.0,0.00108704]
[1732815662102,0.052592,95048.0,95007.0,0.00108704]
[1732815662103,0.14896,95020.0,95012.0,0.3608]
[1732815662299,0.052609,95016.0,95015.0,0.052609]
[1732815663892,0.14896,95025.0,95014.0,0.05261]
[1732815664103,0.05316301,95027.0,95026.0,0.052604]
[1732815664302,0.052603,95027.0,95026.0,0.052604]
[1732815664900,0.01422483,95033.0,95031.0,0.0526]
[1732815664901,0.052601,95032.0,95031.0,0.0526]
[1732815666301,0.057601,95032.0,95031.0,0.001]
[1732815666910,0.058601,95032.0,95031.0,0.001]
[1732815667113,0.052604,95025.0,95024.0,0.3608]
[1732815667507,1.552604,95025.0,95024.0,0.3608]
[1732815669398,0.052604,95025.0,95024.0,0.3608]
[1732815669600,0.055604,95025.0,95024.0,0.3608]
[1732815669806,0.061604,95025.0,95024.0,0.3608]
[1732815670209,0.003,95025.0,95024.0,0.413405]
[1732815670409,0.005,95025.0,95024.0,0.413405]
[1732815670609,0.008,95025.0,95024.0,0.3608]
[1732815670809,0.055604,95025.0,95024.0,0.3608]
[1732815671006,0.061604,95025.0,95024.0,0.3608]
[1732815671502,0.061604,95025.0,95007.0,0.19378798]
[1732815671503,0.009,95025.0,95016.0,0.052609]
[1732815671807,0.009,95025.0,95017.0,0.052608]
[1732815671808,0.052607,95021.0,95017.0,0.052608]
[1732815672009,0.0332,95024.0,95017.0,0.052608]
[1732815672209,0.0332,95024.0,95011.0,0.052612]
[1732815672508,0.05261,95015.0,95007.0,8.704e-05]
[1732815672710,0.05261,95015.0,95014.0,0.05261]
[1732815674313,0.002,95021.0,95007.0,8.704e-05]
[1732815674514,0.052611,95013.0,95009.0,0.052613]
[1732815675610,0.052611,95013.0,95011.0,0.052612]
[1732815675804,0.052611,95013.0,95012.0,0.413411]
[1732815676004,0.053611,95013.0,95012.0,0.413411]
[1732815676706,0.001,95013.0,95012.0,0.413411]
[1732815677211,0.053611,95013.0,95012.0,0.3608]
[1732815678114,0.053611,95013.0,95012.0,0.413411]
[1732815679208,0.001,95013.0,95012.0,0.413411]
[1732815680810,0.001,95013.0,95012.0,0.415411]
[1732815681721,0.053611,95013.0,95012.0,0.415411]
[1732815682126,0.052611,95013.0,95012.0,0.415411]
[1732815682423,0.052611,95013.0,95012.0,0.413411]
[1732815683418,0.053611,95013.0,95012.0,0.413411]
[1732815684024,0.052611,95013.0,95012.0,0.413411]
[1732815685012,0.01416068,95022.0,95021.0,0.052606]
[1732815685225,0.0526,95033.0,95032.0,0.0526]
[1732815686722,0.0586,95033.0,95032.0,0.0526]
[1732815688419,0.006,95033.0,95032.0,0.0526]
[1732815689227,0.004,95033.0,95032.0,0.0526]
[1732815689427,0.006,95033.0,95032.0,0.0526]
[1732815689725,0.002,95033.0,95032.0,0.0526]
[1732815689928,0.006,95033.0,95032.0,0.0526]
[1732815691628,0.0586,95033.0,95032.0,0.0526]
[1732815698131,0.006,95033.0,95032.0,0.0526]
[1732815698729,0.0586,95033.0,95032.0,0.0526]
[1732815700738,0.07286028,95033.0,95032.0,0.0526]
[1732815701327,0.0586,95033.0,95032.0,0.0526]
[1732815701727,0.006,95033.0,95032.0,0.0526]
[1732815702438,0.0586,95033.0,95032.0,0.0526]
[1732815705540,0.052595,95041.0,95040.0,0.052595]
[1732815705837,0.052595,95041.0,95040.0,0.413395]
[1732815706942,0.060595,95041.0,95040.0,0.413395]
[1732815707133,0.060595,95041.0,95040.0,0.3608]
[1732815707331,0.060595,95041.0,95040.0,0.413396]
[1732815708537,0.064595,95041.0,95040.0,0.413396]
[1732815719239,0.012,95041.0,95040.0,0.413396]
[1732815719842,0.064595,95041.0,95040.0,0.413396]
[1732815720750,0.012,95041.0,95040.0,0.413396]
[1732815723045,0.064595,95041.0,95040.0,0.3608]
[1732815724942,0.012,95041.0,95040.0,0.413396]
[1732815725347,0.064595,95041.0,95040.0,0.413396]
[1732815727049,0.31564,95040.0,95019.0,0.3608]
[1732815727246,0.052607,95020.0,95019.0,0.3608]
[1732815728650,0.052607,95020.0,95019.0,0.3638]
[1732815728951,0.052607,95020.0,95019.0,0.005]
[1732815729151,0.0662507,95020.0,95019.0,0.005]
[1732815729751,0.0662507,95020.0,95019.0,0.003]
[1732815729946,0.0662507,95020.0,95019.0,0.005]
[1732815738359,0.1624037,95020.0,95019.0,0.005]
[1732815738563,0.14876,95020.0,95019.0,0.005]
[1732815738757,0.052607,95020.0,95019.0,0.005]
[1732815740659,0.084707,95020.0,95019.0,0.005]
[1732815742571,0.09888172,95020.0,95019.0,0.005]
[1732815746979,1.59888172,95020.0,95019.0,0.005]
[1732815749177,0.09888172,95020.0,95019.0,0.005]
[1732815750079,0.09888172,95020.0,95001.0,0.0311]
[1732815750276,0.413413,95008.0,95000.0,0.1]
[1732815750481,0.562213,95008.0,95000.0,0.1]
[1732815751375,0.562213,95008.0,95007.0,0.00508704]
[1732815751977,0.56234732,95008.0,95007.0,0.00508704]
[1732815752180,0.56234732,95008.0,95007.0,0.00108704]
[1732815753791,2.06234732,95008.0,95007.0,0.00108704]
[1732815754076,2.37810732,95008.0,95007.0,0.00108704]
[1732815754285,0.052617,95001.0,95000.0,0.1]
[1732815754480,0.201377,95001.0,95000.0,0.1]
[1732815755079,0.517177,95001.0,95000.0,0.1]
[1732815755577,0.517177,95001.0,95000.0,0.101]
[1732815756080,0.53222873,95001.0,95000.0,0.101]
[1732815756681,0.53422873,95001.0,95000.0,0.101]
[1732815757387,0.53622873,95001.0,95000.0,0.1]
[1732815761693,0.53622873,95001.0,94982.0,0.00012291]
[1732815761694,0.052627,94983.0,94982.0,0.00012291]
[1732815761878,0.201387,94983.0,94982.0,0.00012291]
[1732815762389,1.701387,94983.0,94982.0,0.00012291]
[1732815763185,1.71541297,94983.0,94982.0,0.00012291]
[1732815764087,1.71541297,94983.0,94982.0,0.00112291]
[1732815764277,0.21541297,94983.0,94982.0,0.00112291]
[1732815764481,0.00056001,94992.0,94982.0,0.00112291]
[1732815764674,0.1488,94991.0,94989.0,0.3608]
[1732815764886,0.052623,94991.0,94989.0,0.3608]
[1732815765184,0.052623,94991.0,94990.0,0.032]
[1732815766285,0.01414932,94994.0,94990.0,0.032]
[1732815766589,0.02180278,95008.0,95001.0,0.052617]
[1732815766590,0.05419681,95002.0,95001.0,0.052617]
[1732815766779,0.05419681,95002.0,95001.0,0.413417]
[1732815767179,0.05419681,95002.0,95001.0,0.3608]
[1732815768177,0.05419681,95002.0,95001.0,0.392]
[1732815768585,0.05419681,95002.0,95001.0,0.444617]
[1732815768788,0.05519681,95002.0,95001.0,0.444617]
[1732815768989,0.05519681,95002.0,95001.0,0.392]
[1732815769290,0.05619681,95002.0,95001.0,0.394]
[1732815769679,0.05619681,95002.0,95001.0,0.4262]
[1732815769882,0.05619681,95002.0,95001.0,0.4242]
[1732815770077,0.05619681,95002.0,95001.0,0.476817]
[1732815770288,0.05519681,95002.0,95001.0,0.4242]
[1732815770486,0.05719681,95002.0,95001.0,0.4242]
[1732815770790,0.05719681,95002.0,95001.0,0.476817]
[1732815770986,0.05519681,95002.0,95001.0,0.476817]
[1732815771190,0.05719681,95002.0,95001.0,0.476817]
[1732815771893,0.05619681,95002.0,95001.0,0.476817]
[1732815772081,0.05719681,95002.0,95001.0,0.476817]
[1732815772784,0.05619681,95002.0,95001.0,0.476817]
[1732815773286,0.05519681,95002.0,95001.0,0.476817]
[1732815773478,0.05719681,95002.0,95001.0,0.476817]
[1732815773879,0.05519681,95002.0,95001.0,0.476817]
[1732815774090,0.05719681,95002.0,95001.0,0.476817]
[1732815774288,0.05619681,95002.0,95001.0,0.476817]
[1732815774488,0.05719681,95002.0,95001.0,0.476817]
[1732815775186,0.05819681,95002.0,95001.0,0.476817]
[1732815775484,0.05619681,95002.0,95001.0,0.476817]
[1732815775679,0.05819681,95002.0,95001.0,0.476817]
[1732815776286,0.05619681,95002.0,95001.0,0.476817]
[1732815776488,0.05819681,95002.0,95001.0,0.476817]
[1732815776787,0.05619681,95002.0,95001.0,0.476817]
[1732815776988,0.05819681,95002.0,95001.0,0.476817]
[1732815777885,0.05919681,95002.0,95001.0,0.476817]
[1732815779389,0.052618,95000.0,94999.0,0.0416]
[1732815779989,1.552618,95000.0,94999.0,0.0416]
[1732815780797,1.556618,95000.0,94999.0,0.0416]
[1732815780988,1.556618,95000.0,94982.0,0.03102291]
[1732815780989,0.052627,94983.0,94982.0,0.00012291]
[1732815781294,0.201387,94983.0,94982.0,0.00012291]
[1732815781491,0.201387,94983.0,94968.0,0.0319]
[1732815781492,0.12782143,94978.0,94968.0,0.0319]
[1732815781892,1.5,94977.0,94968.0,0.0319]
[1732815782090,0.052635,94969.0,94968.0,0.0319]
[1732815783287,0.052635,94969.0,94968.0,0.0339]
[1732815783894,0.053635,94969.0,94968.0,0.0339]
[1732815784801,0.054635,94969.0,94968.0,0.002]
[1732815785194,1.554635,94969.0,94968.0,0.002]
[1732815785703,1.870515,94969.0,94964.0,0.06528]
[1732815785893,0.052649,94944.0,94939.0,0.3608]
[1732815786098,0.201409,94944.0,94939.0,0.3608]
[1732815786896,0.052651,94940.0,94939.0,0.3608]
[1732815788203,0.00011647,94943.0,94939.0,0.3608]
[1732815789004,0.002,94940.0,94939.0,0.3608]
[1732815789501,0.001,94940.0,94939.0,0.3608]
[1732815790397,0.052651,94941.0,94939.0,0.3608]
[1732815791309,0.001,94940.0,94939.0,0.3608]
[1732815791805,0.002,94940.0,94939.0,0.3608]
[1732815792401,0.001,94940.0,94939.0,0.3608]
[1732815793196,0.002,94940.0,94939.0,0.3608]
[1732815793698,0.001,94940.0,94939.0,0.3608]
[1732815794696,0.001,94940.0,94939.0,0.413452]
[1732815795001,0.00011647,94943.0,94939.0,0.729452]
[1732815795206,0.00158028,94960.0,94951.0,0.052644]
[1732815795207,0.052645,94952.0,94951.0,0.052644]
[1732815795505,0.052645,94952.0,94951.0,0.413444]
[1732815796305,0.05272284,94952.0,94951.0,0.413444]
[1732815797904,0.05272284,94952.0,94951.0,0.414444]
[1732815798801,7.784e-05,94952.0,94951.0,0.414444]
[1732815799197,0.05272284,94952.0,94951.0,0.414444]
[1732815799795,7.784e-05,94952.0,94951.0,0.414444]
[1732815800607,0.05272284,94952.0,94951.0,0.414444]
[1732815801107,7.784e-05,94952.0,94951.0,0.414444]
[1732815801610,0.05272284,94952.0,94951.0,0.414444]
[1732815805802,0.05272284,94952.0,94951.0,0.415444]
[1732815806310,0.05272284,94952.0,94951.0,0.414444]
[1732815806507,0.05272284,94952.0,94951.0,0.415444]
[1732815806906,0.05272284,94952.0,94951.0,0.414444]
[1732815807212,0.00107784,94952.0,94951.0,0.414444]
[1732815807708,0.00107784,94952.0,94951.0,0.413444]
[1732815808009,0.00207784,94952.0,94951.0,0.413444]
[1732815808604,0.00107784,94952.0,94951.0,0.413444]
[1732815808910,0.00307784,94952.0,94951.0,0.413444]
[1732815809310,0.00107784,94952.0,94951.0,0.414444]
[1732815809613,7.784e-05,94952.0,94951.0,0.415444]
[1732815810310,0.05272284,94952.0,94951.0,0.415444]
[1732815810899,0.05272284,94952.0,94951.0,0.492844]
[1732815811918,0.05372284,94952.0,94951.0,0.492844]
[1732815812209,0.00107784,94952.0,94951.0,0.492844]
[1732815812610,7.784e-05,94952.0,94951.0,0.492844]
[1732815812807,0.05272284,94952.0,94951.0,0.492844]
[1732815813207,0.05272284,94952.0,94951.0,0.4402]
[1732815813513,0.05272284,94952.0,94951.0,0.4495361]
[1732815813812,0.05272284,94952.0,94951.0,0.5021811]
[1732815815215,7.784e-05,94952.0,94951.0,0.5021811]
[1732815815513,0.05272284,94952.0,94951.0,0.5021811]
[1732815816407,0.05272284,94952.0,94951.0,0.492845]
[1732815817607,0.05272284,94952.0,94951.0,0.4402]
[1732815819915,0.05272284,94952.0,94951.0,0.3628]
[1732815823112,7.784e-05,94952.0,94951.0,0.3628]
[1732815823315,7.784e-05,94952.0,94951.0,0.415445]
[1732815824618,0.01388442,94963.0,94951.0,0.415445]
[1732815824619,0.052634,94972.0,94970.0,0.052634]
[1732815824816,0.05263,94978.0,94974.0,0.052632]
[1732815825021,0.052633,94972.0,94971.0,0.3608]
[1732815825518,0.0527617,94972.0,94971.0,0.3608]
[1732815825720,0.2022017,94972.0,94971.0,0.3608]
[1732815826013,0.0527617,94972.0,94971.0,0.3608]
[1732815826216,0.22808276,94972.0,94971.0,0.3608]
[1732815826611,0.1615687,94972.0,94971.0,0.3608]
[1732815826811,0.1595687,94972.0,94971.0,0.3608]
[1732815827110,0.1585687,94972.0,94971.0,0.3608]
[1732815827307,0.0091287,94972.0,94971.0,0.3608]
[1732815829314,0.0081287,94972.0,94971.0,0.3608]
[1732815829522,0.0051287,94972.0,94971.0,0.3608]
[1732815829720,0.0071287,94972.0,94971.0,0.3922]
[1732815832916,0.0071287,94972.0,94971.0,0.42748]
[1732815837823,0.2091617,94972.0,94971.0,0.3608]
[1732815838119,0.22258933,94972.0,94971.0,0.3608]
[1732815842520,0.16995633,94972.0,94969.0,0.06372]
[1732815842725,0.052635,94970.0,94969.0,0.06372]
[1732815843125,1.552635,94970.0,94969.0,0.06372]
[1732815843625,0.052635,94970.0,94969.0,0.06372]
[1732815844131,0.052637,94966.0,94958.0,0.052641]
[1732815844328,0.052638,94965.0,94958.0,0.052641]
[1732815844728,0.052638,94965.0,94959.0,0.05264]
[1732815845229,0.052638,94965.0,94954.0,0.3909]
[1732815845230,0.13382143,94970.0,94954.0,0.3909]
[1732815845534,0.006,94970.0,94969.0,0.052635]
[1732815846126,0.002,94970.0,94969.0,0.052635]
[1732815846721,0.004,94970.0,94969.0,0.052635]
[1732815847032,0.004,94970.0,94969.0,0.097395]
[1732815847625,0.006,94970.0,94969.0,0.097395]
[1732815848827,0.006,94970.0,94969.0,0.11087917]
[1732815849829,0.006,94970.0,94969.0,0.04476]
[1732815849830,0.207395,94970.0,94969.0,0.04476]
[1732815850524,0.52369901,94970.0,94969.0,0.00054342]
[1732815850723,0.052644,94953.0,94952.0,0.03316]
[1732815850935,0.201404,94953.0,94952.0,0.03316]
[1732815852046,0.201404,94953.0,94952.0,0.03516]
[1732815852742,0.21481447,94953.0,94952.0,0.03516]
[1732815853544,0.201404,94953.0,94952.0,0.03516]
[1732815853743,0.202404,94953.0,94952.0,0.03816]
[1732815854743,0.202404,94953.0,94952.0,0.03716]
[1732815855046,0.201404,94953.0,94952.0,0.03616]
[1732815864348,0.201404,94953.0,94952.0,0.088805]
[1732815864542,0.14876,94953.0,94952.0,0.088805]
[1732815865749,0.201404,94953.0,94952.0,0.088805]
[1732815867749,0.201404,94953.0,94952.0,0.150965]
[1732815869965,0.201404,94953.0,94952.0,0.09832]
[1732815870957,0.201404,94953.0,94952.0,0.03616]
[1732815873751,0.14876,94953.0,94952.0,0.088805]
[1732815875158,0.01348257,94958.0,94952.0,0.088805]
[1732815875159,0.01348257,94958.0,94956.0,0.052642]
[1732815875466,0.052639,94963.0,94962.0,0.052639]
[1732815875660,0.052639,94963.0,94961.0,0.052639]
[1732815875860,0.052639,94963.0,94962.0,0.052639]
[1732815876256,0.14876,94966.0,94964.0,0.052637]
[1732815876257,0.201397,94966.0,94964.0,0.052637]
[1732815876457,0.052637,94965.0,94964.0,0.052637]
[1732815876758,0.201397,94965.0,94964.0,0.052637]
[1732815877061,0.201397,94965.0,94958.0,0.0316]
[1732815877062,0.052641,94960.0,94959.0,0.05264]
[1732815877268,0.052641,94958.0,94957.0,0.3608]
[1732815877962,0.052641,94958.0,94956.0,0.04948]
[1732815878164,0.052642,94957.0,94956.0,0.102122]
[1732815878570,0.052642,94957.0,94956.0,0.04948]
[1732815878864,0.201402,94957.0,94956.0,0.04948]
[1732815879661,0.201402,94957.0,94954.0,0.052643]
[1732815879861,0.201402,94957.0,94952.0,0.03316]
[1732815879862,0.052644,94954.0,94952.0,0.03316]
[1732815880063,0.052644,94954.0,94953.0,0.052644]
[1732815880455,0.052644,94954.0,94952.0,0.03316]
[1732815880456,0.14876,94957.0,94952.0,0.03316]
[1732815880660,0.052644,94953.0,94952.0,0.03316]
[1732815880860,0.052644,94953.0,94952.0,0.085805]
[1732815881461,0.201402,94957.0,94953.0,0.053644]
[1732815881665,0.052643,94956.0,94953.0,0.053644]
[1732815881870,0.14876,94957.0,94953.0,0.053644]
[1732815882172,0.052643,94955.0,94953.0,0.052644]
[1732815882361,0.14876,94957.0,94953.0,0.052644]
[1732815882562,0.052644,94953.0,94952.0,0.03416]
[1732815883967,0.052644,94953.0,94952.0,0.03316]
[1732815884558,0.052644,94953.0,94952.0,0.03416]
[1732815884960,0.052644,94953.0,94952.0,0.03616]
[1732815887663,0.06616832,94953.0,94952.0,0.03616]
[1732815890467,0.06616832,94953.0,94952.0,0.03516]
[1732815891772,0.06616832,94953.0,94952.0,0.03316]
[1732815892073,1.56616832,94953.0,94952.0,0.03316]
[1732815892670,0.06616832,94953.0,94952.0,0.03316]
[1732815895070,0.09636832,94953.0,94952.0,0.03316]
[1732815895577,0.052648,94945.0,94936.0,0.3608]
[1732815895875,0.052653,94937.0,94936.0,0.3608]
[1732815896978,0.052653,94937.0,94936.0,0.3628]
[1732815897277,0.052653,94937.0,94936.0,0.002]
[1732815897772,0.052653,94937.0,94927.0,7.819e-05]
[1732815897965,0.052658,94928.0,94927.0,7.819e-05]
[1732815898166,0.201418,94928.0,94927.0,7.819e-05]
[1732815899380,0.21618312,94928.0,94927.0,0.00307819]
[1732815900068,0.1498,94928.0,94927.0,0.36387819]
[1732815900273,0.001,94928.0,94927.0,0.41653619]
[1732815900470,0.1498,94928.0,94927.0,0.41653619]
[1732815901272,0.203458,94928.0,94927.0,0.36587819]
[1732815901471,0.203378,94928.0,94927.0,0.36587819]
[1732815905177,0.054658,94928.0,94927.0,0.36587819]
[1732815908276,0.054658,94928.0,94927.0,0.00507819]
[1732815910579,0.203378,94928.0,94927.0,0.00507819]
[1732815911485,0.054658,94928.0,94927.0,0.00507819]
[1732815911882,0.203378,94928.0,94927.0,0.00507819]
[1732815914289,0.22445953,94928.0,94927.0,0.00507819]
[1732815918791,0.002,94928.0,94927.0,0.41853619]
[1732815918995,0.31464834,94948.0,94927.0,0.68191819]
[1732815919196,0.02107814,94953.0,94946.0,0.413448]
[1732815919493,0.14872,94954.0,94946.0,0.413448]
[1732815919704,0.16791524,94960.0,94946.0,0.3608]
[1732815919705,0.05422762,94947.0,94946.0,0.3608]
[1732815920392,0.05522762,94947.0,94946.0,0.3608]
[1732815920697,0.05622762,94947.0,94946.0,0.3608]
[1732815921091,0.00258062,94947.0,94946.0,0.413448]
[1732815921286,0.00358062,94947.0,94946.0,0.413448]
[1732815921888,0.01344996,94956.0,94946.0,0.479808]
[1732815922087,0.052639,94962.0,94961.0,0.05264]
[1732815922288,0.201359,94962.0,94961.0,0.05264]
[1732815922489,0.201359,94962.0,94955.0,0.413442]
[1732815922490,0.052642,94956.0,94955.0,0.413442]
[1732815924190,0.054642,94956.0,94955.0,0.413442]
[1732815924391,0.055642,94956.0,94955.0,0.413442]
[1732815924591,0.055642,94956.0,94955.0,0.481402]
[1732815928302,0.003,94956.0,94955.0,0.481402]
[1732815935909,0.055642,94956.0,94955.0,0.481402]
[1732815938612,0.003,94956.0,94955.0,0.481402]
[1732815941421,0.055642,94956.0,94955.0,0.481402]
[1732815942116,0.003,94956.0,94955.0,0.481402]
[1732815944426,0.20119,94979.0,94971.0,0.052634]
[1732815944614,0.14856,94979.0,94971.0,0.413434]
[1732815945230,0.052631,94976.0,94971.0,0.413434]
[1732815945828,0.052631,94976.0,94971.0,0.480314]
[1732815946432,0.14856,94979.0,94971.0,0.480314]
[1732815946433,0.0051287,94972.0,94971.0,0.480314]
[1732815946623,0.0141287,94972.0,94971.0,0.481314]
[1732815947219,0.0121287,94972.0,94971.0,0.481314]
[1732815947421,0.0121287,94972.0,94971.0,0.842114]
[1732815947621,0.14856,94991.0,94972.0,0.052633]
[1732815947821,0.052621,94995.0,94994.0,0.05262]
[1732815948632,0.05274991,94995.0,94994.0,0.05262]
[1732815948834,0.05274991,94995.0,94990.0,0.3608]
[1732815948835,0.052623,94991.0,94990.0,0.413423]
[1732815949231,0.06074991,94995.0,94994.0,0.052621]
[1732815949528,0.00812891,94995.0,94994.0,0.052621]
[1732815949929,0.00012891,94995.0,94994.0,0.052621]
[1732815951029,0.00912891,94995.0,94994.0,0.053621]
[1732815951936,0.01612891,94995.0,94994.0,0.05469738]
[1732815953425,0.00912891,94995.0,94994.0,0.05469738]
[1732815953641,0.00912891,94995.0,94994.0,0.05369738]
[1732815953642,0.00012891,94995.0,94994.0,0.05369738]
[1732815954933,0.00012891,94995.0,94994.0,0.09949738]
[1732815956249,0.05274991,94995.0,94994.0,0.09949738]
[1732815956736,0.05274991,94995.0,94994.0,0.04687638]
[1732815956936,0.05264472,94995.0,94994.0,0.04687638]
[1732815957135,0.06632892,94995.0,94994.0,0.04687638]
[1732815957537,0.38212892,94995.0,94994.0,0.04687638]
[1732815957838,0.38212892,94995.0,94994.0,0.00107638]
[1732815958136,0.01370792,94995.0,94994.0,0.00107638]
[1732815959233,0.06632892,94995.0,94994.0,0.05369738]
[1732815959940,0.06632892,94995.0,94994.0,0.00107638]
[1732815960640,0.06632892,94995.0,94983.0,0.05896]
[1732815960641,0.052627,94984.0,94983.0,0.05896]
[1732815962033,0.052627,94984.0,94983.0,0.06196]
[1732815962738,0.052627,94984.0,94983.0,0.05896]
[1732815962947,0.053627,94984.0,94983.0,0.05896]
[1732815963136,0.053627,94984.0,94983.0,0.06496]
[1732815963632,0.001,94984.0,94983.0,0.05896]
[1732815963832,0.004,94984.0,94983.0,0.111587]
[1732815964736,0.003,94984.0,94983.0,0.111587]
[1732815964937,0.005,94984.0,94983.0,0.111587]
[1732815965142,0.005,94984.0,94983.0,0.06253959]
[1732815965540,0.005,94984.0,94983.0,0.07591028]
[1732815965541,0.002,94984.0,94983.0,0.07591028]
[1732815965742,0.004,94984.0,94983.0,0.07591028]
[1732815966145,0.052626,94986.0,94983.0,0.0390862]
[1732815966374,0.052626,94986.0,94985.0,0.052626]
[1732815966646,0.14838372,94995.0,94990.0,0.052622]
[1732815966647,0.052623,94991.0,94990.0,0.052622]
[1732815967444,0.20100472,94995.0,94994.0,0.052621]
[1732815968034,0.05264472,94995.0,94994.0,0.052621]
[1732815968652,0.052623,94990.0,94989.0,0.413424]
[1732815968947,0.052627,94987.0,94986.0,0.052626]
[1732815969147,0.052627,94987.0,94983.0,0.05528]
[1732815969148,0.052627,94984.0,94983.0,0.05528]
[1732815969947,0.052627,94984.0,94975.0,0.05632]
[1732815969948,0.052631,94976.0,94975.0,0.05632]
[1732815970841,0.06597458,94976.0,94975.0,0.05632]
[1732815972048,0.052631,94976.0,94975.0,0.05632]
[1732815972351,0.052631,94976.0,94973.0,8.238e-05]
[1732815972352,0.67668,94976.0,94953.0,0.19042322]
[1732815972552,0.052643,94955.0,94954.0,0.052643]
[1732815973138,0.14836,94960.0,94953.0,0.05422326]
[1732815973139,0.052643,94954.0,94953.0,0.05422326]
[1732815973545,0.14836,94960.0,94956.0,0.008]
[1732815973750,0.052642,94957.0,94956.0,0.060642]
[1732815975253,0.052642,94957.0,94956.0,0.052642]
[1732815975956,0.052642,94957.0,94956.0,0.053642]
[1732815976142,0.052642,94957.0,94956.0,0.054642]
[1732815977749,0.052642,94957.0,94956.0,0.002]
[1732815979345,0.01383944,94961.0,94959.0,0.05264]
[1732815979645,0.06647944,94961.0,94960.0,0.05264]
[1732815979955,0.06647944,94961.0,94956.0,0.3628]
[1732815979956,0.052641,94960.0,94959.0,0.052641]
[1732815980951,0.052636,94968.0,94967.0,0.052636]
[1732815981159,0.052636,94968.0,94967.0,0.413436]
[1732815982354,0.14836,94973.0,94972.0,0.052633]
[1732815982552,0.052632,94974.0,94973.0,0.052633]
[1732815984560,0.052632,94974.0,94973.0,0.053633]
[1732815986255,0.052632,94974.0,94973.0,0.052633]
[1732815986256,0.053632,94974.0,94973.0,0.052633]
[1732815986759,0.054632,94974.0,94973.0,0.052633]
[1732815987152,0.053632,94974.0,94973.0,0.052633]
[1732815987362,0.056632,94974.0,94973.0,0.052633]
[1732815988260,0.052635,94970.0,94968.0,0.052636]
[1732815988462,0.052636,94968.0,94967.0,0.3608]
[1732815989163,1.552636,94968.0,94967.0,0.3608]
[1732815989356,0.052636,94968.0,94967.0,0.413436]
[1732815989866,0.052636,94968.0,94967.0,0.3608]
[1732815990365,0.052636,94968.0,94967.0,0.3618]
[1732815991059,0.052636,94968.0,94967.0,0.414436]
[1732815991255,0.052636,94968.0,94967.0,0.415436]
[1732815992165,0.052633,94972.0,94971.0,0.052633]
[1732815993369,0.054633,94972.0,94971.0,0.052633]
[1732815994066,0.057633,94972.0,94971.0,0.052633]
[1732815995263,0.056633,94972.0,94971.0,0.052633]
[1732815998165,0.052638,94966.0,94965.0,0.052637]
[1732816000071,0.14824,94973.0,94959.0,0.3608]
[1732816000367,0.052634,94972.0,94971.0,0.052633]
[1732816002269,0.16931159,94973.0,94959.0,0.3658]
[1732816002476,0.16931159,94973.0,94966.0,0.052637]
[1732816002670,0.052636,94967.0,94966.0,0.052637]
[1732816006179,0.054636,94967.0,94966.0,0.052637]
[1732816006573,0.052636,94967.0,94966.0,0.052637]
[1732816006769,0.053636,94967.0,94966.0,0.052637]
[1732816012472,0.052636,94967.0,94966.0,0.052637]
[1732816012779,0.053636,94967.0,94966.0,0.052637]
[1732816013874,0.052636,94967.0,94966.0,0.052637]
[1732816014074,0.053636,94967.0,94966.0,0.052637]
[1732816015877,0.05264,94963.0,94962.0,0.052637]
[1732816016077,0.05264,94963.0,94960.0,0.1895682]
[1732816016280,0.05264,94961.0,94960.0,0.1895682]
[1732816016480,0.05264,94960.0,94959.0,0.3608]
[1732816016783,0.05264,94960.0,94959.0,0.413441]
[1732816017782,0.05264,94960.0,94959.0,0.3608]
[1732816019178,0.06600576,94960.0,94959.0,0.3608]
[1732816020179,0.07200576,94960.0,94959.0,0.3618]
[1732816020886,0.07500576,94960.0,94959.0,0.3618]
[1732816022983,0.07500576,94960.0,94959.0,0.001]
[1732816026393,0.07500576,94960.0,94959.0,0.053641]
[1732816026590,0.17052576,94960.0,94959.0,0.414441]
[1732816026991,0.009,94960.0,94959.0,0.414441]
[1732816027791,0.06164,94960.0,94959.0,0.3618]
[1732816027996,0.37756,94960.0,94959.0,0.001]
[1732816028594,1.87756,94960.0,94959.0,0.001]
[1732816028792,1.87456,94960.0,94959.0,0.003]
[1732816030091,1.86856,94960.0,94959.0,0.002]
[1732816030288,1.86856,94960.0,94959.0,0.004]
[1732816030490,1.86956,94960.0,94959.0,0.002]
[1732816030792,0.052643,94955.0,94954.0,0.00157949]
[1732816031001,0.200803,94955.0,94954.0,0.00157949]
[1732816032192,0.202803,94955.0,94954.0,0.00157949]
[1732816032696,0.052645,94951.0,94950.0,0.00010806]
[1732816033994,0.055645,94951.0,94950.0,0.00010806]
[1732816035797,0.05576633,94951.0,94950.0,0.00010806]
[1732816036586,0.37172633,94951.0,94950.0,0.00010806]
[1732816037989,0.05576633,94951.0,94950.0,0.00010806]
[1732816038796,0.20396633,94951.0,94950.0,0.00010806]
[1732816039490,0.00312133,94951.0,94950.0,0.00010806]
[1732816039693,0.00312133,94951.0,94950.0,0.41355406]
[1732816041090,0.00112133,94951.0,94950.0,0.41355406]
[1732816041599,0.00012133,94951.0,94950.0,0.41355406]
[1732816041797,0.00112133,94951.0,94950.0,0.41355406]
[1732816042205,0.07371501,94963.0,94950.0,0.37441859]
[1732816042406,0.200837,94966.0,94965.0,0.052637]
[1732816042605,0.052637,94966.0,94965.0,0.052637]